fUST/lending_fUST_20240513
["ID","MTS","AMOUNT","RATE_DAILY","PERIOD"]
[326891462,1715548238784,-500.0,0.00027999,2]
[326891464,1715548238792,-500.0,0.00027999,2]
[326891466,1715548238802,-422.81174657,0.00027999,2]
[326891468,1715548238811,-500.0,0.00027999,2]
[326891470,1715548238820,-500.0,0.00027999,2]
[326891472,1715548238829,-489.63145788,0.00027999,2]
[326891474,1715548238839,-500.0,0.00027999,2]
[326891476,1715548238847,-245.74948811,0.00027999,2]
[326891477,1715548238857,-500.0,0.00027999,2]
[326891479,1715548238867,-500.0,0.00027999,2]
[326891482,1715548238878,-500.0,0.00027999,2]
[326891484,1715548238888,-500.0,0.00027999,2]
[326891486,1715548238897,-495.69013856,0.00027999,2]
[326891488,1715548238908,-500.0,0.00027999,2]
[326891490,1715548238917,-500.0,0.00027999,2]
[326891491,1715548238926,-7631.35442109,0.00028,11]
[326891494,1715548238935,-386.33885941,0.00028,11]
[326891496,1715548238945,-1771.54689173,0.00028,4]
[326891498,1715548238958,-14910.129015,0.00028,4]
[326891582,1715548240646,-658.0229348,0.00028,4]
[326891583,1715548240696,-293.95,0.00028,4]
[326891649,1715548243707,-4725.10773749,0.00028,4]
[326891650,1715548243719,-2950.4,0.00028,4]
[326891655,1715548244210,-211.15097091,0.00028,4]
[326891656,1715548244224,-1189.73765153,0.00028,4]
[326891657,1715548244235,-16700.37794682,0.00028,4]
[326891706,1715548246595,-3999.0,0.00028,4]
[326891707,1715548246607,-7121.46027318,0.00028,4]
[326891708,1715548286498,4664.67495305,0.00020913,2]
[326891709,1715548286569,834.50840127,0.00020913,2]
[326891710,1715548300575,286.30747096,0.00020913,2]
[326891711,1715548336609,154.92374512,0.00020913,2]
[326891712,1715548353519,154.73694719,0.00020913,2]
[326891713,1715548420333,255.70191213,0.00020913,5]
[326891714,1715548473454,904.53581118,0.00020913,2]
[326891715,1715548813106,621.7749333,0.00022428,2]
[326891716,1715549158625,606.170307,0.00022514,2]
[326891717,1715549174811,253.50110628,0.00020913,2]
[326891718,1715549220064,967.00673706,0.00020414,2]
[326891719,1715549238145,-17304.37059068,0.00023137,2]
[326891720,1715549351096,-7595.62940932,0.00023137,2]
[326891721,1715549351117,-179.285893,0.0002319,2]
[326891722,1715549351138,-3000.0,0.00023381,2]
[326891723,1715549351159,-620.08874666,0.00023549,2]
[326891724,1715549351180,-170.277173,0.00023562,2]
[326891725,1715549351201,-170.20877,0.00023562,2]
[326891726,1715549351221,-389.2978774,0.00023716,2]
[326891727,1715549351242,-1364.5338851,0.00024169,2]
[326891728,1715549351263,-1328.8284206,0.00024448,2]
[326891729,1715549351285,-620.00443733,0.00024727,2]
[326891730,1715549351305,-179.285893,0.0002477,2]
[326891731,1715549351324,-331.40858303,0.00025,2]
[326891732,1715549351348,-967.00673706,0.00025414,2]
[326891733,1715549351368,-620.00022187,0.00025963,2]
[326891734,1715549351389,-179.285893,0.00026351,2]
[326891735,1715549368800,173.858263,0.00025742,2]
[326891736,1715549393510,520.5944527,0.00025907,2]
[326891737,1715549425983,209.67235114,0.00025907,2]
[326891827,1715549432997,-620.00001109,0.00027261,2]
[326891829,1715549433007,-832.26840066,0.000279,2]
[326891830,1715549433017,-183.63141473,0.000279,2]
[326891832,1715549433026,-5799.89,0.0002799,3]
[326891834,1715549433035,-4833.24,0.0002799,3]
[326891836,1715549433043,-4027.7,0.0002799,3]
[326891837,1715549433053,-170.49107855,0.00027999,2]
[326891840,1715549433071,-500.0,0.00027999,2]
[326891849,1715549433226,-500.0,0.00027999,2]
[326891851,1715549433236,-500.0,0.00027999,2]
[326891852,1715549433245,-500.0,0.00027999,2]
[326891853,1715549433255,-500.0,0.00027999,2]
[326891854,1715549433265,-11803.84710962,0.00028,11]
[326891855,1715549433274,-193.16942971,0.00028,11]
[326891856,1715549433283,-36547.59925034,0.00028,4]
[326891901,1715549438571,-1296.1,0.0002799,3]
[326891905,1715549438601,-2060.32,0.0002799,3]
[326891907,1715549438611,-8144.680985,0.00028,4]
[326891910,1715549438628,-3368.57495305,0.00028,4]
[326891912,1715549438639,-52354.53022065,0.00028,4]
[326891914,1715549438650,-530.97014209,0.00028,4]
[326892826,1715549447947,154.7215013,0.00025907,2]
[326893844,1715549458303,255.83174585,0.00020913,2]
[326894136,1715549461944,154.7215013,0.00025907,2]
[326894347,1715549464180,6144.32584484,0.00020913,2]
[326894401,1715549464700,214.29753306,0.00020913,2]
[326894599,1715549466696,894.51331095,0.00020913,2]
[326894884,1715549469485,273.52788847,0.00020913,2]
[326895170,1715549472443,713.0309286,0.0001943,2]
[326895702,1715549477938,154.7215013,0.00025907,2]
[326897397,1715549495950,154.7215013,0.00025,2]
[326897623,1715549517954,154.7215013,0.00025,2]
[326897624,1715549521532,796.96571733,0.000259,2]
[326897625,1715549541958,284.88529744,0.00025,2]
[326897626,1715549566302,253.28915843,0.00020913,2]
[326897627,1715549566384,7385.37018522,0.00020913,2]
[326897628,1715549566824,262.70380162,0.00020913,2]
[326897629,1715549574747,569.26502482,0.00020913,2]
[326897630,1715549577501,447.20436467,0.00020913,2]
[326897631,1715549578406,156.14987174,0.00020913,2]
[326897632,1715549590646,1000.0,0.00020913,2]
[326897645,1715549760701,259.7000008,0.00020913,2]
[326897646,1715549794758,526.15071087,0.00020913,4]
[326897647,1715549812726,526.15071087,0.00020913,4]
[326897648,1715549830692,526.15071087,0.00020913,4]
[326897650,1715550052098,652.4377538,0.00022987,2]
[326897651,1715550240877,846.260819,0.00022867,2]
[326897653,1715550425307,726.15382703,0.00020767,2]
[326897654,1715550440207,-250.0,0.00023112,2]
[326897655,1715550440254,-444.8132716,0.00023171,2]
[326897656,1715550440277,-163.510231,0.00023562,2]
[326897657,1715550440299,-167.01352,0.00023562,2]
[326897658,1715550440318,-176.265756,0.00023622,2]
[326897659,1715550440339,-1490.59622142,0.0002379,2]
[326897660,1715550556104,-24900.0,0.00023368,2]
[326897661,1715550556127,-2589.85960352,0.000244,2]
[326897662,1715550556149,-728.23485063,0.000249,2]
[326897663,1715550556169,-13551.45435789,0.000249,2]
[326897664,1715550556190,-154.82424634,0.00025,2]
[326897665,1715550556212,-726.15382703,0.00025767,2]
[326897666,1715550556232,-500.0,0.00026569,2]
[326897667,1715550556253,-500.0,0.00026569,2]
[326897668,1715550556276,-500.0,0.00026569,2]
[326897669,1715550556304,-500.0,0.00026569,2]
[326897670,1715550556330,-500.0,0.00026569,2]
[326897671,1715550556352,-500.0,0.00026569,2]
[326897672,1715550556374,-500.0,0.00026569,2]
[326897673,1715550556396,-367.48399818,0.00026569,2]
[326897674,1715550556418,-500.0,0.00026569,2]
[326897675,1715550556440,-500.0,0.00026569,2]
[326897676,1715550556460,-500.0,0.00026569,2]
[326897677,1715550556482,-500.0,0.00026569,2]
[326897678,1715550556507,-500.0,0.00026569,2]
[326897679,1715550556528,-500.0,0.00026569,2]
[326897680,1715550556549,-500.0,0.00026569,2]
[326897681,1715550556567,-2042.43433402,0.000266,2]
[326897682,1715550567095,-186.94483115,0.00027,2]
[326897683,1715550567116,-13465.16101758,0.00027,15]
[326897721,1715550631803,-2397.8,0.0002799,3]
[326897723,1715550631813,-4186.05,0.0002799,3]
[326897725,1715550631823,-3488.38,0.0002799,3]
[326897727,1715550631832,-370.97169293,0.00027999,2]
[326897729,1715550631843,-296.99245836,0.00027999,2]
[326897731,1715550631852,-228.13515676,0.00027999,2]
[326897733,1715550631861,-470.47862509,0.00027999,2]
[326897735,1715550631871,-201.63369646,0.00027999,2]
[326897737,1715550631883,-415.78944171,0.00027999,2]
[326897739,1715550631893,-461.16328846,0.00027999,2]
[326897741,1715550631902,-551.98174097,0.00027999,2]
[326897743,1715550631911,-430.58438386,0.00027999,2]
[326897745,1715550631920,-183.41049268,0.00027999,2]
[326897747,1715550631929,-500.0,0.00027999,2]
[326897749,1715550631937,-5901.92355482,0.00028,11]
[326897751,1715550631947,-78864.0381065,0.00028,4]
[326897907,1715550638066,-152.97109426,0.000279,2]
[326897909,1715550638075,-207.49822202,0.00027999,2]
[326897911,1715550638086,-23297.11598251,0.00028,4]
[326897962,1715550640256,-1693.81764785,0.00028,4]
[326898550,1715550645849,-2397.01496928,0.00028,4]
[326898601,1715550646307,-1000.0,0.00028,4]
[326900649,1715550667874,2851.9306106,0.00020913,2]
[326900676,1715550668129,834.57719078,0.00020913,2]
[326900928,1715550670507,208.72073891,0.00027,2]
[326900955,1715550670833,22054.32628899,0.00020913,2]
[326900958,1715550670854,14330.2231418,0.00020913,2]
[326901109,1715550672286,11949.6441716,0.00020913,2]
[326901113,1715550672314,68050.3558284,0.00020913,2]
[326901214,1715550673549,380.05955451,0.00020913,2]
[326901309,1715550674458,330.43257549,0.00020913,2]
[326901344,1715550674781,6857.3776203,0.00020913,2]
[326901594,1715550677207,400.0,0.00020913,2]
[326901846,1715550679659,272.43557424,0.00020913,2]
[326901860,1715550679781,10615.15949594,0.00020913,2]
[326901965,1715550680763,5210.0,0.00020913,2]
[326901994,1715550681025,285.95898409,0.00020913,2]
[326902033,1715550681567,155.02731003,0.00020913,2]
[326902109,1715550682366,309.01096112,0.00020913,2]
[326902120,1715550682457,43843.69285967,0.00020913,2]
[326902150,1715550682737,1866.41167338,0.00020913,2]
[326902440,1715550685579,155.13745691,0.00020913,2]
[326902449,1715550685661,172.52175632,0.00020913,2]
[326902900,1715550690090,283.38194546,0.00020913,2]
[326903055,1715550700444,123513.65908692,0.00020913,2]
[326903056,1715550703066,154.7215013,0.00020913,4]
[326903057,1715550706036,201.48379862,0.00021,2]
[326903058,1715550712454,2662.58856511,0.00020913,2]
[326903059,1715550727050,155.27258716,0.00020913,4]
[326903060,1715550753756,2067.8077144,0.00020913,2]
[326903061,1715550759675,154.73694719,0.00020913,2]
[326903062,1715550760368,13487.98316322,0.00020913,2]
[326903063,1715550760826,819.27631532,0.00020913,2]
[326903064,1715550761220,194.23254452,0.00020913,2]
[326903065,1715550762260,934.79634123,0.00020913,2]
[326903066,1715550762722,816.36645529,0.00020913,2]
[326903067,1715550762778,1882.54248217,0.00020913,2]
[326903068,1715550762807,303.6356596,0.00020913,2]
[326903069,1715550763643,782.96488494,0.00020913,2]
[326903070,1715550764280,154.73694719,0.00020913,2]
[326903071,1715550764481,155.91488492,0.00020913,2]
[326903072,1715550765434,686.71357361,0.00020913,2]
[326903073,1715550766288,959.14535877,0.00020913,2]
[326903074,1715550766518,3457.70192986,0.00020913,2]
[326903075,1715550767974,1337.31788699,0.00020913,2]
[326903076,1715550770561,241.88258989,0.00020913,2]
[326903077,1715550771156,700.3500905,0.00020913,2]
[326903078,1715550778908,894.1755972,0.00020913,2]
[326903079,1715550782765,26882.14278712,0.00020913,2]
[326903080,1715550783894,512.19242406,0.00020913,2]
[326903081,1715550784666,5742.85859293,0.00020913,2]
[326903082,1715550789104,670.81073141,0.00020913,2]
[326903083,1715550916416,522.19690124,0.00020913,2]
[326903084,1715551204968,320.461948,0.00020913,2]
[326903085,1715551324846,816.97434546,0.00020913,2]
[326903086,1715551355876,575.00185176,0.00020913,2]
[326903087,1715551356273,620.0,0.00020913,2]
[326903088,1715551360247,2227.80406591,0.0002,6]
[326903089,1715551388117,1839.67573824,0.00020913,2]
[326903090,1715551442872,672.76402872,0.00020913,2]
[326903091,1715551528858,19180.69214996,0.00020913,2]
[326903092,1715551535766,200.0,0.00022225,2]
[326903093,1715551551135,-1438.90369955,0.00023048,2]
[326903094,1715551582399,173.858263,0.00021951,2]
[326903095,1715551606131,166.6666687,0.00021918,2]
[326903096,1715551632447,776.58132208,0.000189,2]
[326903097,1715551649894,439.50845492,0.00020913,2]
[326903098,1715551714831,1042.0,0.00020913,2]
[326903099,1715551734306,602.447444,0.00022283,2]
[326903100,1715551739499,526.15071087,0.0002,4]
[326903101,1715551746150,-23461.09630045,0.00023048,2]
[326903102,1715551746170,-437.2612756,0.00023159,4]
[326903103,1715551746193,-6900.99201067,0.00023462,2]
[326903104,1715551746215,-771.08883964,0.00023462,2]
[326903105,1715551746235,-166.393047,0.00023562,2]
[326903106,1715551746256,-170.277173,0.00023562,2]
[326903107,1715551746279,-776.58132208,0.000239,2]
[326903108,1715551746302,-380.0,0.00024658,2]
[326903109,1715551746325,-7303.84342938,0.000249,2]
[326903110,1715551746345,-620.00000056,0.00024951,2]
[326903111,1715551746370,-500.0,0.00024997,2]
[326903112,1715551746390,-500.0,0.00024997,2]
[326903113,1715551746413,-500.0,0.00024997,2]
[326903114,1715551746434,-500.0,0.00024997,2]
[326903115,1715551746455,-500.0,0.00024997,2]
[326903116,1715551746480,-500.0,0.00024997,2]
[326903117,1715551746504,-500.0,0.00024997,2]
[326903118,1715551746527,-500.0,0.00024997,2]
[326903119,1715551746549,-500.0,0.00024997,2]
[326903120,1715551746572,-500.0,0.00024997,2]
[326903121,1715551746597,-500.0,0.00024997,2]
[326903122,1715551746618,-500.0,0.00024997,2]
[326903123,1715551746640,-495.05209997,0.00024997,2]
[326903124,1715551746661,-500.0,0.00024997,2]
[326903125,1715551746681,-500.0,0.00024997,2]
[326903126,1715551746703,-500.0,0.00024997,2]
[326903127,1715551746724,-500.0,0.00024997,2]
[326903128,1715551746745,-500.0,0.00024997,2]
[326903129,1715551746765,-500.0,0.00024997,2]
[326903130,1715551746785,-500.0,0.00024997,2]
[326903131,1715551746808,-500.0,0.00024997,2]
[326903132,1715551746830,-500.0,0.00024997,2]
[326903133,1715551746850,-500.0,0.00024997,2]
[326903134,1715551746872,-500.0,0.00024997,2]
[326903135,1715551746892,-465.09695727,0.00024997,2]
[326903136,1715551746914,-500.0,0.00024997,2]
[326903137,1715551746934,-500.0,0.00024997,2]
[326903138,1715551746955,-500.0,0.00024997,2]
[326903139,1715551746976,-500.0,0.00024997,2]
[326903140,1715551746997,-500.0,0.00024997,2]
[326903141,1715551747020,-500.0,0.00024997,2]
[326903142,1715551747042,-500.0,0.00024997,2]
[326903143,1715551747065,-500.0,0.00024997,2]
[326903144,1715551747086,-500.0,0.00024997,2]
[326903145,1715551747108,-500.0,0.00024997,2]
[326903146,1715551747128,-500.0,0.00024997,2]
[326903147,1715551747149,-500.0,0.00024997,2]
[326903148,1715551747172,-500.0,0.00024997,2]
[326903149,1715551747194,-532.5,0.00024997,2]
[326903150,1715551747216,-352.15228515,0.00024997,2]
[326903151,1715551747238,-449.45287672,0.00024997,2]
[326903152,1715551747261,-500.0,0.00024997,2]
[326903153,1715551747283,-500.0,0.00024997,2]
[326903154,1715551747310,-500.0,0.00024997,2]
[326903155,1715551747333,-500.0,0.00024997,2]
[326903156,1715551747355,-500.0,0.00024997,2]
[326903157,1715551747381,-500.0,0.00024997,2]
[326903158,1715551747405,-500.0,0.00024997,2]
[326903159,1715551747428,-500.0,0.00024997,2]
[326903160,1715551747452,-500.0,0.00024997,2]
[326903161,1715551747476,-500.0,0.00024997,2]
[326903162,1715551747500,-521.50201214,0.00025,2]
[326903163,1715551747524,-400.28835833,0.00025,2]
[326903164,1715551747545,-352.03009815,0.00025,2]
[326903165,1715551747568,-154.7215013,0.00025,2]
[326903166,1715551747589,-253.34954974,0.00025103,2]
[326903167,1715551751448,202.66089999,0.00020913,4]
[326903168,1715551771386,484.08142548,0.00020913,2]
[326903169,1715551800461,284.55118921,0.00020913,2]
[326903170,1715551807591,364.18525395,0.00025,2]
[326903172,1715551829190,162.50153732,0.00020913,2]
[326903182,1715551832028,-167.97715394,0.0002619,2]
[326903183,1715551832040,-620.00000003,0.00026199,2]
[326903184,1715551832053,-2086.15678154,0.00027,2]
[326903185,1715551832064,-309.42756595,0.00027,2]
[326903186,1715551832077,-186.94483115,0.00027,2]
[326903187,1715551832089,-658.15770941,0.000275,17]
[326903206,1715551838010,-146.84200398,0.000275,17]
[326903208,1715551838020,-202.6796398,0.000279,2]
[326903210,1715551838029,-273.89966192,0.00027999,2]
[326903212,1715551838038,-500.0,0.00027999,2]
[326903214,1715551838048,-650.23914279,0.00027999,2]
[326903216,1715551838057,-500.0,0.00027999,2]
[326903218,1715551838066,-392.5,0.00027999,2]
[326903220,1715551838075,-327.7169863,0.00027999,2]
[326903222,1715551838084,-807.59338109,0.00028,4]
[326903224,1715551838095,-5511.35,0.00028,4]
[326903226,1715551838107,-985.47,0.00028,4]
[326903288,1715551840301,-2888.81949961,0.00028,4]
[326903568,1715551843052,189.39960416,0.00022948,2]
[326903601,1715551843362,-25059.87818884,0.00028,4]
[326903603,1715551843374,-28073.53797114,0.00028,4]
[326903605,1715551843383,-221.32225344,0.00028,2]
[326903607,1715551843395,-658.0229348,0.00028,4]
[326903609,1715551843610,-281.0,0.00028,2]
[326903611,1715551843620,-168.060576,0.00028219,2]
[326903613,1715551843629,-168.060576,0.00028219,25]
[326903615,1715551843639,-168.060576,0.00028219,49]
[326903617,1715551843648,-168.060576,0.00028219,72]
[326903619,1715551843657,-168.060576,0.00028219,96]
[326903621,1715551843667,-168.060576,0.00028219,120]
[326903623,1715551843676,-776.58132208,0.000289,2]
[326903625,1715551843685,-189.48430977,0.00029,2]
[326903627,1715551843694,-3932.83671774,0.0003,2]
[326903629,1715551843703,-656.88284898,0.0003,120]
[326903631,1715551843712,-200.79561856,0.0003,30]
[326903633,1715551843721,-733.30806141,0.0003,2]
[326903635,1715551843730,-172.0,0.0003,2]
[326903637,1715551843740,-202.67963976,0.000304,2]
[326903639,1715551843749,-447.9223528,0.00032,4]
[326903641,1715551843758,-202.67963976,0.000329,2]
[326903643,1715551843768,-602.447444,0.00033424,2]
[326903645,1715551843777,-166.393047,0.00033873,2]
[326903647,1715551843786,-258.6791279,0.00033999,7]
[326903649,1715551843795,-278.59115257,0.00033999,7]
[326903651,1715551843804,-491.16049419,0.00033999,7]
[326903653,1715551843814,-500.0,0.00033999,7]
[326903655,1715551843823,-181.20503425,0.00033999,7]
[326903657,1715551843832,-500.0,0.00033999,7]
[326903659,1715551843841,-500.0,0.00033999,7]
[326903662,1715551843851,-583.7746886,0.00033999,7]
[326903664,1715551843860,-500.0,0.00033999,7]
[326903666,1715551843870,-500.0,0.00033999,7]
[326903668,1715551843880,-452.93391498,0.00033999,7]
[326903670,1715551843890,-500.0,0.00033999,7]
[326903671,1715551843899,-260.10756466,0.00033999,7]
[326903674,1715551843908,-172.0,0.00034,2]
[326903675,1715551843920,-10689.38493145,0.00034,5]
[326903678,1715551843931,-521.38251372,0.00034,5]
[326903679,1715551843940,-322.34219314,0.00035,30]
[326903681,1715551843949,-246.29175108,0.00035,30]
[326903683,1715551843958,-180.4137335,0.00035,4]
[326903686,1715551843971,-935.67306823,0.000356,30]
[326903687,1715551843980,-170.090767,0.00035616,120]
[326903688,1715551843989,-153.85532515,0.00036214,7]
[326903689,1715551843998,-1147.79579671,0.00037,2]
[326903690,1715551844008,-170.20877,0.0003774,2]
[326903691,1715551844017,-2422.48,0.00037879,3]
[326903692,1715551844026,-2906.98,0.00037889,3]
[326903693,1715551844036,-2018.74,0.0003789,3]
[326903694,1715551844045,-172.0,0.00037899,2]
[326903695,1715551844054,-4274.72130489,0.00037899,11]
[326903696,1715551844063,-176.01,0.00037899,2]
[326903697,1715551844072,-19794.97943848,0.000379,2]
[326903698,1715551844083,-151.0,0.000379,2]
[326903699,1715551844091,-399.068485,0.000379,2]
[326903700,1715551844104,-399.068485,0.000379,2]
[326903701,1715551844113,-1001.077604,0.000379,2]
[326903702,1715551844122,-1001.077604,0.000379,2]
[326903703,1715551844132,-873.620761,0.000379,2]
[326903704,1715551844142,-873.620761,0.000379,2]
[326903705,1715551844151,-151.0,0.000379,2]
[326903706,1715551844160,-151.0,0.000379,2]
[326903707,1715551844170,-151.0,0.000379,2]
[326903708,1715551844179,-151.0,0.000379,2]
[326903709,1715551844188,-151.0,0.000379,2]
[326903710,1715551844198,-151.0,0.000379,2]
[326903712,1715551844207,-158.545696,0.000379,2]
[326903714,1715551844216,-158.545696,0.000379,2]
[326903716,1715551844226,-151.0,0.000379,2]
[326903718,1715551844235,-55555.0,0.000379,5]
[326903719,1715551844244,-151.0,0.000379,2]
[326903720,1715551844253,-539.538016,0.000379,2]
[326903721,1715551844262,-539.538016,0.000379,2]
[326903722,1715551844272,-295.902739,0.000379,2]
[326903723,1715551844281,-295.902739,0.000379,2]
[326903724,1715551844291,-2210.28386,0.000379,2]
[326903725,1715551844300,-2210.28386,0.000379,2]
[326903726,1715551844309,-151.0,0.000379,2]
[326903727,1715551844322,-186.536447,0.000379,2]
[326903728,1715551844331,-151.0,0.000379,2]
[326903729,1715551844340,-186.536447,0.000379,2]
[326903730,1715551844349,-151.0,0.000379,2]
[326903731,1715551844359,-5758.385171,0.000379,2]
[326903732,1715551844369,-5758.385171,0.000379,2]
[326903733,1715551844378,-496.550072,0.000379,2]
[326903734,1715551844387,-496.550072,0.000379,2]
[326903735,1715551844398,-246.139102,0.000379,2]
[326903736,1715551844408,-236783.39941643,0.00038,30]
[326903737,1715551844418,-151.0,0.00038,2]
[326903738,1715551844427,-151.0,0.00038,2]
[326903739,1715551844437,-399.068485,0.00038,2]
[326903740,1715551844446,-399.068485,0.00038,2]
[326903741,1715551844455,-233.392084,0.00038,2]
[326903742,1715551844465,-233.392084,0.00038,2]
[326903743,1715551844475,-1001.077604,0.00038,2]
[326903744,1715551844484,-1001.077604,0.00038,2]
[326903745,1715551844496,-151.0,0.00038,2]
[326903746,1715551844507,-151.0,0.00038,2]
[326903747,1715551844518,-151.0,0.00038,2]
[326903748,1715551844527,-151.0,0.00038,2]
[326903749,1715551844538,-873.620761,0.00038,2]
[326903750,1715551844548,-873.620761,0.00038,2]
[326903751,1715551844558,-151.0,0.00038,2]
[326903752,1715551844569,-151.0,0.00038,2]
[326903753,1715551844579,-151.0,0.00038,2]
[326903754,1715551844592,-151.0,0.00038,2]
[326903755,1715551844601,-151.0,0.00038,2]
[326903756,1715551844611,-151.0,0.00038,2]
[326903757,1715551844622,-151.0,0.00038,2]
[326903758,1715551844631,-151.0,0.00038,2]
[326903759,1715551844640,-151.0,0.00038,2]
[326903760,1715551844650,-151.0,0.00038,2]
[326903761,1715551844659,-159.590138,0.00038,2]
[326903762,1715551844672,-158.545696,0.00038,2]
[326903763,1715551844681,-158.545696,0.00038,2]
[326903764,1715551844691,-158.545696,0.00038,2]
[326903765,1715551844701,-158.545696,0.00038,2]
[326903766,1715551844711,-151.0,0.00038,2]
[326903767,1715551844721,-151.0,0.00038,2]
[326903768,1715551844731,-151.0,0.00038,2]
[326903769,1715551844740,-151.0,0.00038,2]
[326903770,1715551844750,-539.538016,0.00038,2]
[326903771,1715551844760,-539.538016,0.00038,2]
[326903772,1715551844770,-539.538016,0.00038,2]
[326903773,1715551844779,-539.538016,0.00038,2]
[326903774,1715551844789,-295.902739,0.00038,2]
[326903775,1715551844800,-295.902739,0.00038,2]
[326903776,1715551844810,-295.902739,0.00038,2]
[326903777,1715551844820,-295.902739,0.00038,2]
[326903778,1715551844830,-2210.28386,0.00038,2]
[326903779,1715551844841,-2210.28386,0.00038,2]
[326903780,1715551844851,-2210.28386,0.00038,2]
[326903781,1715551844862,-2210.28386,0.00038,2]
[326903782,1715551844873,-151.0,0.00038,2]
[326903783,1715551844882,-151.0,0.00038,2]
[326903784,1715551844891,-186.536447,0.00038,2]
[326903785,1715551844900,-151.0,0.00038,2]
[326903786,1715551844909,-151.0,0.00038,2]
[326903787,1715551844918,-186.536447,0.00038,2]
[326903788,1715551844927,-186.536447,0.00038,2]
[326903789,1715551844937,-186.536447,0.00038,2]
[326903790,1715551844946,-151.0,0.00038,2]
[326903791,1715551844956,-151.0,0.00038,2]
[326903792,1715551844967,-151.0,0.00038,2]
[326903793,1715551844979,-5758.385171,0.00038,2]
[326903794,1715551844990,-5758.385171,0.00038,2]
[326903795,1715551845000,-5758.385171,0.00038,2]
[326903796,1715551845009,-5758.385171,0.00038,2]
[326903797,1715551845019,-5758.385171,0.00038,2]
[326903798,1715551845029,-5758.385171,0.00038,2]
[326903799,1715551845039,-496.550072,0.00038,2]
[326903800,1715551845050,-496.550072,0.00038,2]
[326903801,1715551845146,-496.550072,0.00038,2]
[326903802,1715551845156,-496.550072,0.00038,2]
[326903803,1715551845165,-496.550072,0.00038,2]
[326903804,1715551845174,-496.550072,0.00038,2]
[326903805,1715551845183,-4503.096876,0.00038,2]
[326903806,1715551845193,-4503.096876,0.00038,2]
[326903807,1715551845203,-4503.096876,0.00038,2]
[326903808,1715551845212,-4503.096876,0.00038,2]
[326903809,1715551845221,-4503.096876,0.00038,2]
[326903810,1715551845230,-4503.096876,0.00038,2]
[326903811,1715551845239,-893.712303,0.00038,2]
[326903812,1715551845248,-893.712303,0.00038,2]
[326903813,1715551845258,-893.712303,0.00038,2]
[326903814,1715551845267,-1192.054569,0.00038,2]
[326903815,1715551845276,-1192.054569,0.00038,2]
[326903816,1715551845285,-1192.054569,0.00038,2]
[326903817,1715551845294,-893.712303,0.00038,2]
[326903818,1715551845303,-893.712303,0.00038,2]
[326903819,1715551845312,-893.712303,0.00038,2]
[326903820,1715551845326,-1192.054569,0.00038,2]
[326903821,1715551845334,-1192.054569,0.00038,2]
[326903822,1715551845343,-894.88217597,0.00038,2]
[326903842,1715551846181,-202.67963976,0.000354,2]
[326903843,1715551846192,-202.67963976,0.000379,2]
[326903844,1715551846202,-297.17239303,0.00038,2]
[326903845,1715551846211,-151.0,0.00038,2]
[326903846,1715551846220,-151.0,0.00038,2]
[326903847,1715551846229,-151.0,0.00038,2]
[326903848,1715551846238,-1122.800981,0.00038,2]
[326903849,1715551846249,-1122.800981,0.00038,2]
[326903850,1715551846258,-151.0,0.00038,2]